[Event "*** Titled Tuesday Blitz"]
[Site "Chess.com"]
[Date "2020.05.05"]
[Round "5"]
[White "MiroVlasenko"]
[Black "AcsinteMatei"]
[Result "1-0"]
[WhiteElo "2578"]
[BlackElo "2402"]
[TimeControl "180+1"]
[EndTime "10:56:42 PDT"]
[Termination "MiroVlasenko won on time"]

1. e4 {[%clk 0:03:00.9]} 1... c6 {[%clk 0:02:58.5]} 2. Nc3 {[%clk 0:02:59.7]}
2... d5 {[%clk 0:02:58.2]} 3. Qe2 {[%clk 0:03:00.3]} 3... g6 {[%clk 0:02:51.4]}
4. exd5 {[%clk 0:02:58.6]} 4... cxd5 {[%clk 0:02:51]} 5. Qb5+ {[%clk 0:02:58.6]}
5... Bd7 {[%clk 0:02:22.6]} 6. Qxb7 {[%clk 0:02:51.1]} 6... Nc6 {[%clk
0:02:15.9]} 7. Nxd5 {[%clk 0:02:47.3]} 7... Rc8 {[%clk 0:02:15.8]} 8. Bb5 {[%clk
0:02:16.7]} 8... e6 {[%clk 0:02:09.8]} 9. Ne3 {[%clk 0:02:09.1]} 9... Nge7
{[%clk 0:02:03.1]} 10. Nf3 {[%clk 0:02:04.1]} 10... Bg7 {[%clk 0:01:54.9]} 11.
c3 {[%clk 0:01:48]} 11... a6 {[%clk 0:01:31.4]} 12. Be2 {[%clk 0:01:35.7]} 12...
O-O {[%clk 0:01:17.8]} 13. Qxa6 {[%clk 0:01:29.8]} 13... f5 {[%clk 0:01:16.9]}
14. O-O {[%clk 0:01:19.9]} 14... e5 {[%clk 0:01:17.1]} 15. d4 {[%clk 0:01:10.9]}
15... e4 {[%clk 0:01:13.6]} 16. Ng5 {[%clk 0:01:08.9]} 16... h6 {[%clk
0:01:08.1]} 17. Qc4+ {[%clk 0:01:05.3]} 17... Kh8 {[%clk 0:00:58.3]} 18. Nf7+
{[%clk 0:01:05.2]} 18... Rxf7 {[%clk 0:00:58.6]} 19. Qxf7 {[%clk 0:01:05.4]}
19... Be8 {[%clk 0:00:58.7]} 20. Qb3 {[%clk 0:01:00.1]} 20... f4 {[%clk
0:00:55.2]} 21. Bg4 {[%clk 0:00:55.9]} 21... Rb8 {[%clk 0:00:51.9]} 22. Qc2
{[%clk 0:00:52.7]} 22... fxe3 {[%clk 0:00:47.9]} 23. Bxe3 {[%clk 0:00:52.7]}
23... Qd5 {[%clk 0:00:36.7]} 24. b3 {[%clk 0:00:47.8]} 24... h5 {[%clk
0:00:31.5]} 25. Be2 {[%clk 0:00:47.3]} 25... Nf5 {[%clk 0:00:31]} 26. Bc4 {[%clk
0:00:44.5]} 26... Qd6 {[%clk 0:00:25.8]} 27. Qxe4 {[%clk 0:00:42.4]} 27... Bd7
{[%clk 0:00:23]} 28. Bf4 {[%clk 0:00:41.2]} 28... Qf8 {[%clk 0:00:05.5]} 29.
Bxb8 {[%clk 0:00:39.8]} 29... Qxb8 {[%clk 0:00:06.4]} 30. Rae1 {[%clk
0:00:38.5]} 30... Nce7 {[%clk 0:00:04.6]} 31. Be6 {[%clk 0:00:33.7]} 31... Bc6
{[%clk 0:00:04.8]} 32. d5 {[%clk 0:00:33.6]} 32... Nd6 {[%clk 0:00:03.5]} 33.
Qf4 {[%clk 0:00:31.8]} 1-0

[Event "*** Titled Tuesday Blitz"]
[Site "Chess.com"]
[Date "2020.05.05"]
[Round "5"]
[White "pgradalski"]
[Black "elsemenova"]
[Result "0-1"]
[WhiteElo "2205"]
[BlackElo "2391"]
[TimeControl "180+1"]
[EndTime "10:56:44 PDT"]
[Termination "elsemenova won on time"]

1. e4 {[%clk 0:03:00.9]} 1... e5 {[%clk 0:02:59.3]} 2. Nc3 {[%clk 0:02:59.9]}
2... Nf6 {[%clk 0:02:57.1]} 3. Bc4 {[%clk 0:02:59.4]} 3... Nxe4 {[%clk 0:02:57]}
4. Qh5 {[%clk 0:02:55.5]} 4... Nd6 {[%clk 0:02:56.9]} 5. Bb3 {[%clk 0:02:55.6]}
5... Be7 {[%clk 0:02:46.7]} 6. Qxe5 {[%clk 0:02:34.3]} 6... O-O {[%clk
0:02:44.2]} 7. Nf3 {[%clk 0:02:30]} 7... Nc6 {[%clk 0:02:44.2]} 8. Qh5 {[%clk
0:02:17.7]} 8... g6 {[%clk 0:02:36.9]} 9. Qd5 {[%clk 0:02:09.1]} 9... Nb4 {[%clk
0:02:25]} 10. Qa5 {[%clk 0:01:41.8]} 10... Nf5 {[%clk 0:01:59.4]} 11. O-O {[%clk
0:01:23.6]} 11... b6 {[%clk 0:01:48.4]} 12. Qe5 {[%clk 0:01:08.2]} 12... Bb7
{[%clk 0:01:39.9]} 13. Ne4 {[%clk 0:00:54.9]} 13... d6 {[%clk 0:01:15.2]} 14.
Qf4 {[%clk 0:00:47.3]} 14... d5 {[%clk 0:01:15.4]} 15. Neg5 {[%clk 0:00:27.9]}
15... h6 {[%clk 0:01:08]} 16. Nxf7 {[%clk 0:00:08.7]} 16... Rxf7 {[%clk
0:01:03.8]} 17. Ne5 {[%clk 0:00:08.3]} 17... Rg7 {[%clk 0:00:56.5]} 18. d4
{[%clk 0:00:07.5]} 18... Bd6 {[%clk 0:00:49.4]} 19. c3 {[%clk 0:00:07.1]} 19...
Na6 {[%clk 0:00:47.9]} 20. g4 {[%clk 0:00:06.1]} 20... Nh4 {[%clk 0:00:41]} 21.
Qxh6 {[%clk 0:00:04.9]} 21... Bxe5 {[%clk 0:00:37.1]} 22. dxe5 {[%clk
0:00:04.1]} 22... Nf3+ {[%clk 0:00:34.5]} 23. Kg2 {[%clk 0:00:03.4]} 23... Nxe5
{[%clk 0:00:32.6]} 24. Bf4 {[%clk 0:00:02.4]} 24... Nxg4 {[%clk 0:00:29.6]} 25.
Qg5 {[%clk 0:00:02.3]} 25... Qxg5 {[%clk 0:00:28.8]} 26. Bxg5 {[%clk 0:00:02.6]}
26... Nc5 {[%clk 0:00:29.7]} 27. h3 {[%clk 0:00:02.6]} 27... Nxb3 {[%clk
0:00:29.4]} 28. Bf4 {[%clk 0:00:02.6]} 28... Nxa1 {[%clk 0:00:28.9]} 0-1

[Event "*** Titled Tuesday Blitz"]
[Site "Chess.com"]
[Date "2020.05.05"]
[Round "5"]
[White "Gurvich_Vitaly"]
[Black "SlavenPastar"]
[Result "1/2-1/2"]
[WhiteElo "2538"]
[BlackElo "2366"]
[TimeControl "180+1"]
[EndTime "10:56:46 PDT"]
[Termination "Game drawn - insufficient material"]

1. e4 {[%clk 0:02:59.6]} 1... b6 {[%clk 0:02:59]} 2. d4 {[%clk 0:02:58.7]} 2...
Bb7 {[%clk 0:02:59.5]} 3. Nc3 {[%clk 0:02:58.1]} 3... e6 {[%clk 0:02:59]} 4. Nf3
{[%clk 0:02:57.7]} 4... Bb4 {[%clk 0:02:58.7]} 5. Bd3 {[%clk 0:02:56.6]} 5...
Nf6 {[%clk 0:02:58.7]} 6. e5 {[%clk 0:02:56.7]} 6... Ne4 {[%clk 0:02:57.5]} 7.
Bd2 {[%clk 0:02:55.7]} 7... Nxd2 {[%clk 0:02:54.9]} 8. Qxd2 {[%clk 0:02:56.6]}
8... Bxf3 {[%clk 0:02:47.7]} 9. gxf3 {[%clk 0:02:53.9]} 9... Qh4 {[%clk
0:02:42.2]} 10. Be4 {[%clk 0:02:52.7]} 10... Nc6 {[%clk 0:02:42.2]} 11. a3
{[%clk 0:02:51]} 11... Bxc3 {[%clk 0:02:38]} 12. Qxc3 {[%clk 0:02:51.9]} 12...
O-O-O {[%clk 0:02:36.8]} 13. O-O-O {[%clk 0:02:49.9]} 13... Ne7 {[%clk
0:02:01.8]} 14. b4 {[%clk 0:02:48.5]} 14... f5 {[%clk 0:01:49]} 15. exf6 {[%clk
0:02:47.2]} 15... gxf6 {[%clk 0:01:49.9]} 16. a4 {[%clk 0:02:46.1]} 16... f5
{[%clk 0:01:47.8]} 17. Bd3 {[%clk 0:02:46.1]} 17... Kb8 {[%clk 0:01:24.1]} 18.
a5 {[%clk 0:02:45.2]} 18... Qf4+ {[%clk 0:01:15]} 19. Kb2 {[%clk 0:02:44.6]}
19... Qxf3 {[%clk 0:01:12.3]} 20. axb6 {[%clk 0:02:43.5]} 20... cxb6 {[%clk
0:01:07.5]} 21. Ra1 {[%clk 0:02:43]} 21... Rc8 {[%clk 0:00:49.9]} 22. Qa3 {[%clk
0:02:41.3]} 22... Rc7 {[%clk 0:00:49.5]} 23. b5 {[%clk 0:02:39.1]} 23... Nd5
{[%clk 0:00:43.1]} 24. Qd6 {[%clk 0:02:21.4]} 24... Qf4 {[%clk 0:00:40.3]} 25.
Qxf4 {[%clk 0:02:18.9]} 25... Nxf4 {[%clk 0:00:41.2]} 26. Ra3 {[%clk 0:02:17.2]}
26... Rhc8 {[%clk 0:00:39.5]} 27. Rg1 {[%clk 0:02:00.9]} 27... Nxd3+ {[%clk
0:00:38.5]} 28. Rxd3 {[%clk 0:02:01.8]} 28... Rxc2+ {[%clk 0:00:38.3]} 29. Kb3
{[%clk 0:02:02.7]} 29... Rxf2 {[%clk 0:00:36]} 30. Rg7 {[%clk 0:02:02.3]} 30...
Rc7 {[%clk 0:00:19.2]} 31. Rxh7 {[%clk 0:02:01.6]} 31... Kb7 {[%clk 0:00:19.1]}
32. d5 {[%clk 0:02:00.3]} 32... exd5 {[%clk 0:00:14.3]} 33. Rxd5 {[%clk
0:02:00.1]} 33... Rf3+ {[%clk 0:00:12.2]} 34. Kb4 {[%clk 0:01:59.6]} 34... a5+
{[%clk 0:00:07.3]} 35. bxa6+ {[%clk 0:01:58]} 35... Kxa6 {[%clk 0:00:08]} 36.
Rdxd7 {[%clk 0:01:58.8]} 36... Rf4+ {[%clk 0:00:08.5]} 37. Kb3 {[%clk
0:01:58.5]} 37... Rf3+ {[%clk 0:00:08.2]} 38. Kb4 {[%clk 0:01:58.4]} 38... Rf4+
{[%clk 0:00:07.9]} 39. Kb3 {[%clk 0:01:56.7]} 39... Rxd7 {[%clk 0:00:08.3]} 40.
Rxd7 {[%clk 0:01:55.3]} 40... Rf3+ {[%clk 0:00:09.2]} 41. Kb4 {[%clk 0:01:53.5]}
41... Rf2 {[%clk 0:00:06.7]} 42. Rf7 {[%clk 0:01:53.2]} 42... Rf4+ {[%clk
0:00:05.5]} 43. Kb3 {[%clk 0:01:52.5]} 43... Kb5 {[%clk 0:00:05.6]} 44. h4
{[%clk 0:01:52.8]} 44... Rf3+ {[%clk 0:00:05]} 45. Kb2 {[%clk 0:01:51.5]} 45...
Kb4 {[%clk 0:00:05.1]} 46. h5 {[%clk 0:01:51.4]} 46... Rf2+ {[%clk 0:00:05.3]}
47. Kc1 {[%clk 0:01:51.2]} 47... Kc3 {[%clk 0:00:04.7]} 48. Rc7+ {[%clk
0:01:51]} 48... Kb3 {[%clk 0:00:04.3]} 49. Rc6 {[%clk 0:01:51.9]} 49... b5
{[%clk 0:00:04.1]} 50. h6 {[%clk 0:01:52.3]} 50... b4 {[%clk 0:00:03.4]} 51. h7
{[%clk 0:01:50.9]} 51... Rf1+ {[%clk 0:00:04]} 52. Kd2 {[%clk 0:01:50.1]} 52...
Rf2+ {[%clk 0:00:04.5]} 53. Ke3 {[%clk 0:01:49.6]} 53... Rh2 {[%clk 0:00:05.4]}
54. Rc7 {[%clk 0:01:48]} 54... Rh3+ {[%clk 0:00:04.9]} 55. Kf4 {[%clk
0:01:47.5]} 55... Kb2 {[%clk 0:00:04.9]} 56. Kxf5 {[%clk 0:01:47.8]} 56... b3
{[%clk 0:00:05.4]} 57. Kg6 {[%clk 0:01:48]} 57... Kb1 {[%clk 0:00:04.5]} 58. Rb7
{[%clk 0:01:48.3]} 58... b2 {[%clk 0:00:04.6]} 59. Rxb2+ {[%clk 0:01:49.2]}
59... Kxb2 {[%clk 0:00:05.4]} 60. Kg7 {[%clk 0:01:49.7]} 60... Rg3+ {[%clk
0:00:05.8]} 61. Kf8 {[%clk 0:01:49.6]} 61... Rh3 {[%clk 0:00:06.7]} 62. Kg8
{[%clk 0:01:50]} 62... Rxh7 {[%clk 0:00:07]} 63. Kxh7 {[%clk 0:01:48.7]} 1/2-1/2

[Event "*** Titled Tuesday Blitz"]
[Site "Chess.com"]
[Date "2020.05.05"]
[Round "5"]
[White "nurgyulsalimova"]
[Black "Sashadav97"]
[Result "0-1"]
[WhiteElo "2580"]
[BlackElo "2758"]
[TimeControl "180+1"]
[EndTime "10:56:47 PDT"]
[Termination "Sashadav97 won by resignation"]

1. d4 {[%clk 0:03:00.9]} 1... Nf6 {[%clk 0:02:57.2]} 2. c4 {[%clk 0:03:00.4]}
2... e6 {[%clk 0:02:57.6]} 3. Nf3 {[%clk 0:02:57.5]} 3... c5 {[%clk 0:02:57.9]}
4. g3 {[%clk 0:02:52.3]} 4... d5 {[%clk 0:02:57.1]} 5. cxd5 {[%clk 0:02:51.9]}
5... exd5 {[%clk 0:02:58]} 6. Nc3 {[%clk 0:02:51.7]} 6... Nc6 {[%clk 0:02:56.4]}
7. Bg2 {[%clk 0:02:51.6]} 7... cxd4 {[%clk 0:02:56.3]} 8. Nxd4 {[%clk
0:02:51.5]} 8... Bc5 {[%clk 0:02:56]} 9. Nb3 {[%clk 0:02:36.1]} 9... Bb6 {[%clk
0:02:53.9]} 10. O-O {[%clk 0:02:35.2]} 10... d4 {[%clk 0:02:41.9]} 11. Na4
{[%clk 0:02:33.8]} 11... O-O {[%clk 0:02:37.1]} 12. Nxb6 {[%clk 0:02:09.2]}
12... axb6 {[%clk 0:02:32]} 13. Bxc6 {[%clk 0:01:59.4]} 13... bxc6 {[%clk
0:02:32.9]} 14. Qxd4 {[%clk 0:01:59.8]} 14... Ba6 {[%clk 0:01:03.6]} 15. Qxd8
{[%clk 0:01:43.2]} 15... Rfxd8 {[%clk 0:01:04.5]} 16. Re1 {[%clk 0:01:40.9]}
16... Bc4 {[%clk 0:01:03.5]} 17. Bg5 {[%clk 0:01:22.5]} 17... c5 {[%clk
0:00:57.3]} 18. Nc1 {[%clk 0:00:57.9]} 18... h6 {[%clk 0:00:54.1]} 19. Bf4
{[%clk 0:00:49.2]} 19... Rd7 {[%clk 0:00:49]} 20. b3 {[%clk 0:00:47.5]} 20...
Bb5 {[%clk 0:00:48.3]} 21. e4 {[%clk 0:00:34]} 21... Re8 {[%clk 0:00:43.8]} 22.
f3 {[%clk 0:00:31]} 22... g5 {[%clk 0:00:39.6]} 23. Be3 {[%clk 0:00:29.4]} 23...
g4 {[%clk 0:00:39.8]} 24. Bxh6 {[%clk 0:00:20.4]} 24... gxf3 {[%clk 0:00:39.1]}
25. a4 {[%clk 0:00:16.5]} 25... Ng4 {[%clk 0:00:27]} 26. Be3 {[%clk 0:00:07.2]}
26... Rxe4 {[%clk 0:00:14.3]} 27. axb5 {[%clk 0:00:06.7]} 27... Rxe3 {[%clk
0:00:13.8]} 28. Rxe3 {[%clk 0:00:06.3]} 28... Rd1+ {[%clk 0:00:12.1]} 0-1

[Event "*** Titled Tuesday Blitz"]
[Site "Chess.com"]
[Date "2020.05.05"]
[Round "5"]
[White "SummertimeFun"]
[Black "tufferguy"]
[Result "0-1"]
[WhiteElo "2192"]
[BlackElo "2363"]
[TimeControl "180+1"]
[EndTime "10:56:47 PDT"]
[Termination "tufferguy won by checkmate"]

1. d4 {[%clk 0:03:00.9]} 1... d5 {[%clk 0:02:58.6]} 2. c4 {[%clk 0:03:01.8]}
2... dxc4 {[%clk 0:02:59.5]} 3. Nf3 {[%clk 0:03:02.7]} 3... Nf6 {[%clk
0:02:57.8]} 4. g3 {[%clk 0:03:00.6]} 4... Nc6 {[%clk 0:02:52.5]} 5. Bg2 {[%clk
0:03:01.5]} 5... e5 {[%clk 0:02:49.3]} 6. O-O {[%clk 0:03:02.4]} 6... exd4
{[%clk 0:02:35.6]} 7. Bg5 {[%clk 0:02:56.8]} 7... Be7 {[%clk 0:02:27.7]} 8. Bxf6
{[%clk 0:02:50.2]} 8... Bxf6 {[%clk 0:02:27.3]} 9. Na3 {[%clk 0:02:49.5]} 9...
Be6 {[%clk 0:02:20.8]} 10. Rc1 {[%clk 0:02:42.7]} 10... c3 {[%clk 0:02:04.4]}
11. bxc3 {[%clk 0:02:36.9]} 11... dxc3 {[%clk 0:02:05.3]} 12. Qxd8+ {[%clk
0:02:34.1]} 12... Rxd8 {[%clk 0:02:03.9]} 13. Nb5 {[%clk 0:02:34.4]} 13... Ke7
{[%clk 0:01:50]} 14. Nxc3 {[%clk 0:02:28.4]} 14... Bxc3 {[%clk 0:01:24.3]} 15.
Rxc3 {[%clk 0:02:29.3]} 15... Bxa2 {[%clk 0:01:23.2]} 16. Ng5 {[%clk 0:02:26.5]}
16... h6 {[%clk 0:00:40.7]} 17. Ne4 {[%clk 0:02:22.2]} 17... Nd4 {[%clk
0:00:20.2]} 18. Rxc7+ {[%clk 0:02:20.1]} 18... Kf8 {[%clk 0:00:18.3]} 19. Rxb7
{[%clk 0:02:15.9]} 19... Nxe2+ {[%clk 0:00:18.4]} 20. Kh1 {[%clk 0:02:16.2]}
20... g6 {[%clk 0:00:16]} 21. Rxa7 {[%clk 0:02:16.2]} 21... Be6 {[%clk
0:00:15.3]} 22. Nc5 {[%clk 0:02:16.2]} 22... Bd5 {[%clk 0:00:13.1]} 23. Bxd5
{[%clk 0:02:14.2]} 23... Rxd5 {[%clk 0:00:14]} 24. Re1 {[%clk 0:02:13.2]} 24...
Nxg3+ {[%clk 0:00:12.1]} 25. hxg3 {[%clk 0:02:12.7]} 25... Rxc5 {[%clk 0:00:13]}
26. Ree7 {[%clk 0:02:11.9]} 26... Rf5 {[%clk 0:00:11.7]} 27. f4 {[%clk 0:02:12]}
27... Kg7 {[%clk 0:00:11.4]} 28. Kg2 {[%clk 0:02:10.7]} 28... Rd8 {[%clk
0:00:08.4]} 29. Kh3 {[%clk 0:02:10.5]} 29... Rd3 {[%clk 0:00:08.4]} 30. Kg4
{[%clk 0:02:10.2]} 30... h5+ {[%clk 0:00:07.8]} 31. Kh4 {[%clk 0:02:10.1]} 31...
Rd1 {[%clk 0:00:06.3]} 32. Kh3 {[%clk 0:02:08.9]} 32... Rf6 {[%clk 0:00:04.3]}
33. Reb7 {[%clk 0:02:07.3]} 33... Rd2 {[%clk 0:00:04.5]} 34. Rb8 {[%clk
0:02:06.7]} 34... Rd3 {[%clk 0:00:04.8]} 35. Raa8 {[%clk 0:02:06.8]} 35... Rxf4
{[%clk 0:00:04.6]} 36. Rg8+ {[%clk 0:02:06.8]} 36... Kh6 {[%clk 0:00:04.3]} 37.
Kg2 {[%clk 0:02:04.5]} 37... Rf5 {[%clk 0:00:04.5]} 38. Rgb8 {[%clk 0:02:02.1]}
38... Kg5 {[%clk 0:00:05.4]} 39. Rb4 {[%clk 0:02:01.2]} 39... Rd2+ {[%clk
0:00:05.6]} 40. Kg1 {[%clk 0:02:00.4]} 40... Re5 {[%clk 0:00:04.7]} 41. Ra1
{[%clk 0:01:56.3]} 41... Rde2 {[%clk 0:00:05]} 42. Rf1 {[%clk 0:01:55.4]} 42...
f5 {[%clk 0:00:05.5]} 43. Rb6 {[%clk 0:01:51.3]} 43... R2e3 {[%clk 0:00:06]} 44.
Kg2 {[%clk 0:01:50.6]} 44... Re2+ {[%clk 0:00:06.4]} 45. Kh3 {[%clk 0:01:50.9]}
45... R5e4 {[%clk 0:00:04.6]} 46. Rd1 {[%clk 0:01:45.4]} 46... Re6 {[%clk
0:00:05.5]} 47. Rb7 {[%clk 0:01:44]} 47... R2e3 {[%clk 0:00:04.9]} 48. Kg2
{[%clk 0:01:42.3]} 48... h4 {[%clk 0:00:04.1]} 49. gxh4+ {[%clk 0:01:41.4]}
49... Kxh4 {[%clk 0:00:05]} 50. Rh1+ {[%clk 0:01:41.8]} 50... Kg4 {[%clk
0:00:05.1]} 51. Rb4+ {[%clk 0:01:40.9]} 51... f4 {[%clk 0:00:05.5]} 52. Rf1
{[%clk 0:01:36.3]} 52... Re2+ {[%clk 0:00:05.5]} 53. Kg1 {[%clk 0:01:36.5]}
53... g5 {[%clk 0:00:04.6]} 54. Ra4 {[%clk 0:01:35.6]} 54... Re1 {[%clk
0:00:04.9]} 55. Kf2 {[%clk 0:01:32.6]} 55... Rxf1+ {[%clk 0:00:05.3]} 56. Kxf1
{[%clk 0:01:33.5]} 56... Kf3 {[%clk 0:00:04.8]} 57. Ra3+ {[%clk 0:01:33.3]}
57... Re3 {[%clk 0:00:04.4]} 58. Ra4 {[%clk 0:01:33.1]} 58... g4 {[%clk
0:00:04.9]} 59. Ra8 {[%clk 0:01:32.2]} 59... g3 {[%clk 0:00:05.3]} 60. Rg8
{[%clk 0:01:28]} 60... g2+ {[%clk 0:00:05.6]} 61. Kg1 {[%clk 0:01:28.3]} 61...
Re1+ {[%clk 0:00:05.8]} 62. Kh2 {[%clk 0:01:28.7]} 62... Rh1# {[%clk 0:00:06.2]}
0-1

[Event "*** Titled Tuesday Blitz"]
[Site "Chess.com"]
[Date "2020.05.05"]
[Round "5"]
[White "orkan85"]
[Black "vwnv7"]
[Result "0-1"]
[WhiteElo "2472"]
[BlackElo "2330"]
[TimeControl "180+1"]
[EndTime "10:56:48 PDT"]
[Termination "vwnv7 won on time"]

1. e4 {[%clk 0:03:00.9]} 1... c5 {[%clk 0:02:59.8]} 2. Nf3 {[%clk 0:03:01]} 2...
Nc6 {[%clk 0:02:59.4]} 3. Bb5 {[%clk 0:03:00.2]} 3... g6 {[%clk 0:02:58.7]} 4.
Bxc6 {[%clk 0:03:00.1]} 4... dxc6 {[%clk 0:02:58]} 5. d3 {[%clk 0:02:56.8]} 5...
Bg7 {[%clk 0:02:57.9]} 6. h3 {[%clk 0:02:57]} 6... e5 {[%clk 0:02:57.3]} 7. Nc3
{[%clk 0:02:57.4]} 7... Qe7 {[%clk 0:02:56.1]} 8. Be3 {[%clk 0:02:57]} 8... Nf6
{[%clk 0:02:55.8]} 9. Qd2 {[%clk 0:02:57.2]} 9... Nd7 {[%clk 0:02:54.2]} 10. Bh6
{[%clk 0:02:55.2]} 10... f6 {[%clk 0:02:51.7]} 11. Bxg7 {[%clk 0:02:38.7]} 11...
Qxg7 {[%clk 0:02:51.5]} 12. a3 {[%clk 0:02:39.6]} 12... Nf8 {[%clk 0:02:43.7]}
13. b4 {[%clk 0:02:39.4]} 13... Qe7 {[%clk 0:02:33.5]} 14. Na4 {[%clk
0:02:37.2]} 14... cxb4 {[%clk 0:02:27.7]} 15. axb4 {[%clk 0:02:35.4]} 15... Rb8
{[%clk 0:02:24]} 16. Nc5 {[%clk 0:02:17.2]} 16... b6 {[%clk 0:02:13.9]} 17. Na6
{[%clk 0:02:16]} 17... Rb7 {[%clk 0:02:12.6]} 18. Qc3 {[%clk 0:02:06.8]} 18...
Bd7 {[%clk 0:02:09]} 19. O-O {[%clk 0:01:52.3]} 19... Ne6 {[%clk 0:02:08.3]} 20.
d4 {[%clk 0:01:36.1]} 20... exd4 {[%clk 0:02:00.1]} 21. Nxd4 {[%clk 0:01:37]}
21... Nf4 {[%clk 0:01:48.3]} 22. Qe3 {[%clk 0:01:29.4]} 22... g5 {[%clk
0:01:38.9]} 23. Rfe1 {[%clk 0:01:06.5]} 23... O-O {[%clk 0:01:36.3]} 24. Ne2
{[%clk 0:01:06.6]} 24... Ng6 {[%clk 0:01:33.8]} 25. f4 {[%clk 0:00:31]} 25...
Re8 {[%clk 0:01:33.2]} 26. fxg5 {[%clk 0:00:22.8]} 26... fxg5 {[%clk 0:01:31.8]}
27. Qg3 {[%clk 0:00:21.2]} 27... Qxe4 {[%clk 0:01:18.9]} 28. Qxg5 {[%clk
0:00:18]} 28... Qc4 {[%clk 0:01:14.5]} 29. Ng3 {[%clk 0:00:16.3]} 29... Rxe1+
{[%clk 0:01:11.8]} 30. Rxe1 {[%clk 0:00:17.2]} 30... Qxa6 {[%clk 0:01:08.9]} 31.
Nh5 {[%clk 0:00:10.7]} 31... Qc4 {[%clk 0:01:05.4]} 32. Qd8+ {[%clk 0:00:10.2]}
32... Nf8 {[%clk 0:00:57.8]} 33. Qg5+ {[%clk 0:00:09.2]} 33... Ng6 {[%clk
0:00:53.1]} 34. Qd8+ {[%clk 0:00:03.5]} 34... Nf8 {[%clk 0:00:49.8]} 35. Rf1
{[%clk 0:00:03.4]} 35... Qxb4 {[%clk 0:00:30]} 0-1

[Event "*** Titled Tuesday Blitz"]
[Site "Chess.com"]
[Date "2020.05.05"]
[Round "5"]
[White "Berardino"]
[Black "MasterKroket"]
[Result "0-1"]
[WhiteElo "2636"]
[BlackElo "2445"]
[TimeControl "180+1"]
[EndTime "10:56:49 PDT"]
[Termination "MasterKroket won by checkmate"]

1. e4 {[%clk 0:03:00.9]} 1... c5 {[%clk 0:02:59.2]} 2. Nf3 {[%clk 0:03:00.9]}
2... e6 {[%clk 0:02:59.8]} 3. d4 {[%clk 0:03:01.3]} 3... cxd4 {[%clk 0:03:00.7]}
4. Nxd4 {[%clk 0:03:02.1]} 4... Nc6 {[%clk 0:03:01.4]} 5. Nc3 {[%clk 0:03:02.6]}
5... Qc7 {[%clk 0:03:01.9]} 6. Be2 {[%clk 0:03:03.2]} 6... a6 {[%clk 0:03:01.8]}
7. O-O {[%clk 0:03:03.6]} 7... Nf6 {[%clk 0:03:02.5]} 8. Kh1 {[%clk 0:03:03.5]}
8... Nxd4 {[%clk 0:02:58.2]} 9. Qxd4 {[%clk 0:03:04.4]} 9... Bc5 {[%clk
0:02:58.6]} 10. Qd3 {[%clk 0:03:04.6]} 10... d6 {[%clk 0:02:54.6]} 11. Be3
{[%clk 0:03:00.9]} 11... O-O {[%clk 0:02:53.1]} 12. Rad1 {[%clk 0:03:00.5]}
12... b5 {[%clk 0:02:49.5]} 13. f4 {[%clk 0:02:54.3]} 13... Bb7 {[%clk
0:02:48.9]} 14. Bf3 {[%clk 0:02:51.5]} 14... b4 {[%clk 0:02:38.4]} 15. Bxc5
{[%clk 0:02:50.3]} 15... dxc5 {[%clk 0:02:36.6]} 16. Ne2 {[%clk 0:02:43]} 16...
a5 {[%clk 0:02:24]} 17. e5 {[%clk 0:02:23.9]} 17... Nd5 {[%clk 0:02:21.2]} 18.
Be4 {[%clk 0:02:15]} 18... g6 {[%clk 0:02:15.3]} 19. Qf3 {[%clk 0:02:09.7]}
19... Rad8 {[%clk 0:02:09.5]} 20. Ng3 {[%clk 0:01:53.5]} 20... Ba6 {[%clk
0:02:01.1]} 21. Rfe1 {[%clk 0:01:52.4]} 21... Ne7 {[%clk 0:01:57.9]} 22. Qg4
{[%clk 0:01:20.9]} 22... Rxd1 {[%clk 0:01:54]} 23. Rxd1 {[%clk 0:01:21.8]} 23...
Rd8 {[%clk 0:01:53.9]} 24. Re1 {[%clk 0:01:21]} 24... Qd7 {[%clk 0:01:30.4]} 25.
Nh5 {[%clk 0:01:20.8]} 25... Qd2 {[%clk 0:01:29.6]} 26. Nf6+ {[%clk 0:01:20.9]}
26... Kg7 {[%clk 0:01:26.8]} 27. Qh4 {[%clk 0:01:10.3]} 27... h6 {[%clk
0:01:20.6]} 28. Rg1 {[%clk 0:01:09.8]} 28... Be2 {[%clk 0:01:14.6]} 29. h3
{[%clk 0:00:53.4]} 29... Rd4 {[%clk 0:01:13.7]} 30. Ne8+ {[%clk 0:00:38]} 30...
Kf8 {[%clk 0:01:08.5]} 31. Nd6 {[%clk 0:00:38.3]} 31... Ng8 {[%clk 0:00:55.1]}
32. Qd8+ {[%clk 0:00:33.7]} 32... Kg7 {[%clk 0:00:55.7]} 33. Qc7 {[%clk
0:00:33]} 33... Rxd6 {[%clk 0:00:40.5]} 34. exd6 {[%clk 0:00:29]} 34... Nf6
{[%clk 0:00:41.1]} 35. Bc6 {[%clk 0:00:27.7]} 35... Qxf4 {[%clk 0:00:22.8]} 36.
Bb7 {[%clk 0:00:17.6]} 36... Nh5 {[%clk 0:00:23]} 37. Qc6 {[%clk 0:00:16.7]}
37... Ng3+ {[%clk 0:00:22.3]} 38. Kh2 {[%clk 0:00:17.2]} 38... Nf1+ {[%clk
0:00:23]} 39. Kh1 {[%clk 0:00:16.1]} 39... Qh2# {[%clk 0:00:23.7]} 0-1